[Event "5th Vardaris Open 2019"]
[Site "Thessaloniki"]
[Date "2019.03.10"]
[Round "5.9"]
[White "Salahidou, Reveka"]
[Black "Tsaknakis, Zisis"]
[Result "0-1"]
[ECO "B06"]
[WhiteElo "1941"]
[BlackElo "2243"]
[Annotator "NA RC"]
[PlyCount "62"]
[EventDate "2019.02.27"]
[EventType "swiss"]
[EventCountry "GRE"]
[SourceTitle "playchess.com"]
[Source "ChessBase"]
[SourceQuality "1"]
[TimeControl "6000+30"]

1. e4 {[%emt 0:00:00]} g6 {[%emt 0:00:00]} 2. d4 {[%emt 0:00:02]} Bg7 {[%emt 0:00:01]} 3. Nc3 {[%emt 0:01:32]} c6 {[%emt 0:00:01]} 4. g3 {[%emt 0:04:12]} d6 {[%emt 0:03:22]} 5. Bg2 {[%emt 0:00:22]} Nd7 {[%emt 0:00:14]} 6. Nge2 {[%emt 0:10:08]} e5 {[%emt 0:08:37]} 7. d5 {[%emt 0:03:25]} Nb6 {[%emt 0:01:16]} 8. O-O {[%emt 0:02:22]} Ne7 {[%emt 0:10:02]} 9. f4 {[%emt 0:08:56]} cxd5 {[%emt 0:05:04]} 10. exd5 {[%emt 0:04:58]} O-O {[%emt 0:01:22]} 11. Kh1 {[%emt 0:05:24]} exf4 {[%emt 0:02:37]} 12. Bxf4 {[%emt 0:01:40]} Nc4 {[%emt 0:00:03]} 13. Qc1 {[%emt 0:03:57]} Bg4 {[%emt 0:12:16]} 14. Rb1 {[%emt 0:03:04]} Qa5 {[%emt 0:05:37]} 15. b4 {[%emt 0:12:51]} Qb6 {[%emt 0:04:09]} 16. h3 {[%emt 0:08:33]} Bxe2 {[%emt 0:00:22]} 17. Nxe2 {[%emt 0:00:06]} Nf5 {[%emt 0:00:13]} 18. Rb3 {[%emt 0:03:38]} Rfe8 {[%emt 0:07:48]} 19. Bf3 {[%emt 0:03:14]} Nce3 {[%emt 0:16:56]} 20. Re1 {[%emt 0:02:03]} Rac8 {[%emt 0:01:27]} 21. c3 {[%emt 0:04:13]} Nc4 {[%emt 0:05:08]} 22. Kg2 {[%emt 0:02:52]} Nfe3+ {[%emt 0:00:48]} 23. Kh1 {[%emt 0:00:58]} Nf5 {[%emt 0:05:39]} 24. Kg2 {[%emt 0:02:29]} Qa6 {[%emt 0:00:01]} 25. a3 {[%emt 0:03:14]} Nce3+ {[%emt 0:03:55]} 26. Kh1 {[%emt 0:05:17]} Qc4 {[%emt 0:00:12]} 27. Rb2 {[%emt 0:03:47]} Nxd5 {[%emt 0:00:23]} 28. Bd2 {[%emt 0:00:37]} Rxe2 {[%emt 0:02:46]} 29. Bxe2 {[%emt 0:01:53]} Nxg3+ {[%emt 0:00:08]} 30. Kh2 {[%emt 0:00:15]} Nxe2 {[%emt 0:00:09]} 31. Qb1 {[%emt 0:01:42]} Ndxc3 {[%emt 0:01:43]} 0-1

[Event "5th Vardaris Open 2019"]
[Site "Thessaloniki"]
[Date "2019.03.10"]
[Round "6.5"]
[White "Delorme, Alban"]
[Black "Sidiropoulos, Nikolaos"]
[Result "1-0"]
[ECO "D78"]
[WhiteElo "2305"]
[BlackElo "2112"]
[Annotator "NA RC"]
[PlyCount "79"]
[EventDate "2019.02.27"]
[EventType "swiss"]
[EventCountry "GRE"]
[SourceTitle "playchess.com"]
[Source "ChessBase"]
[SourceQuality "1"]
[TimeControl "6000+30"]

{[%evp 13,74,-18,-16,32767,32767,32767,-54,32767,32767,32767,-36,32767,32767,32767,32767,-42,-41,32767,-47,-61,8,23,0,22,32767,32767,32767,32767,146,32767,32767,188,204,154,153,157,32767,137,155,167,241,191,245,263,219,254,256,264,291,334,288,289,339,392,375,337,379,437,573,552,636,833,1056]} 1. Nf3 {[%emt 0:00:43]} d5 {[%emt 0:00:00]} 2. d4 {[%emt 0:01:06]} Nf6 {[%emt 0:00:00]} 3. g3 {[%emt 0:00:51]} g6 {[%emt 0:00:14]} 4. Bg2 {[%emt 0:00:05]} Bg7 {[%emt 0:00:04]} 5. O-O {[%emt 0:00:05]} O-O {[%emt 0:00:04]} 6. c4 {[%emt 0:00:03]} c6 {[%emt 0:00:05]} 7. Nc3 {[%emt 0:05:40]} dxc4 {[%emt 0:00:22]} 8. Ne5 {[%emt 0:00:07]} Ng4 {[%emt 0:00:34]} 9. f4 {[%emt 0:00:07] D78: Fianchetto Grünfeld: 6 0-0 c6} (9. Nxg4 Bxg4 10. Be3 Qa5 11. Qc1 Rd8 12. Rd1 Na6 13. f3 Be6 14. Bf2 Rd7 15. a3 Rad8 16. e3 c5 17. d5 Bxd5 18. Nxd5 Rxd5 19. Rxd5 Rxd5 20. Qxc4 {½-½ (72) Dzagnidze,N (2535)-Sasikiran,K (2700) Caleta 2012}) 9... Nxe5 {[%emt 0:03:10]} 10. dxe5 {[%emt 0:03:20]} Qxd1 {[%emt 0:16:06]} 11. Rxd1 {[%emt 0:00:10]} Na6 {[%emt 0:09:32]} 12. Be3 {[%emt 0:02:06]} f6 {[%emt 0:02:06]} 13. exf6 {[%emt 0:00:45]} Bxf6 $146 {[%emt 0:02:23]} ({Predecessor:} 13... exf6 14. Rd6 Re8 15. Bf2 Be6 16. Rad1 f5 {0-1 (37) Kopasz,R (2295)-Berebora,F (2428) Hungary 2016}) 14. Bd4 {[%emt 0:00:27]} Be6 {[%emt 0:18:30]} 15. Bxf6 {[%emt 0:01:46]} exf6 {[%emt 0:00:14]} 16. Ne4 {[%emt 0:07:24]} Rad8 {[%emt 0:06:43]} ({Black should play} 16... Rae8 $15) 17. Nxf6+ {[%emt 0:02:09]} Kg7 {[%emt 0:00:32]} 18. Ne4 {[%emt 0:00:30]} h6 {[%emt 0:10:50]} 19. Rd6 {[%emt 0:08:06]} Bd5 {[%emt 0:07:41]} 20. Rd1 {[%emt 0:00:18]} Rde8 {[%emt 0:06:13]} 21. Rd7+ {[%emt 0:02:31]} Kh8 {[%emt 0:02:04]} 22. Nd6 {[%emt 0:04:05]} Nc5 {[%emt 0:01:43]} 23. Nxe8 {[%emt 0:02:01]} ({Don't play} 23. Bxd5 $6 Nxd7) 23... Nxd7 {[%emt 0:00:45]} 24. Bxd5 {[%emt 0:01:05]} cxd5 {[%emt 0:00:31]} 25. Nc7 {[%emt 0:04:35]} Nf6 {[%emt 0:00:22]} 26. Nxd5 {[%emt 0:00:23]} Rd8 {[%emt 0:04:47]} (26... g5 {is a better defense.} 27. Nc3 gxf4) 27. Nc3 {[%emt 0:01:01]} Rxd1+ {[%emt 0:01:37]} 28. Nxd1 {[%emt 0:00:08]} b5 {[%emt 0:01:00]} 29. Kf2 {[%emt 0:00:03]} Kg7 {[%emt 0:00:28]} 30. Kf3 {[%emt 0:01:37]} Kf7 {[%emt 0:00:58]} 31. Nc3 {[%emt 0:05:04]} a6 {[%emt 0:00:15]} 32. a4 {[%emt 0:01:18]} bxa4 {[%emt 0:06:41]} 33. Nxa4 {[%emt 0:00:07]} Nd7 {[%emt 0:03:49]} 34. Ke4 {[%emt 0:02:43]} Ke6 {[%emt 0:00:17]} 35. Kd4 {[%emt 0:00:29]} Kf5 {[%emt 0:00:17]} 36. h3 {[%emt 0:02:12]} Nf6 {[%emt 0:00:33]} 37. Nc5 {[%emt 0:00:33]} g5 $18 {[%emt 0:00:59]} 38. e4+ {[%emt 0:01:03]} Nxe4 {[%emt 0:00:13]} 39. Nxe4 {[%emt 0:00:07]} gxf4 {[%emt 0:00:09]} 40. g4+ {[%emt 0:00:27] Kxe4+ Kxe4} 1-0

[Event "5th Vardaris Open 2019"]
[Site "Thessaloniki"]
[Date "2019.03.11"]
[Round "7.2"]
[White "Kanakaris, Georgios"]
[Black "Betsakos, Konstantinos"]
[Result "1-0"]
[ECO "E11"]
[WhiteElo "2403"]
[BlackElo "2045"]
[Annotator "RC"]
[PlyCount "67"]
[EventDate "2019.02.27"]
[EventType "swiss"]
[EventCountry "GRE"]
[SourceTitle "playchess.com"]
[Source "ChessBase"]
[SourceQuality "1"]
[TimeControl "6000+30"]

1. d4 {[%emt 0:00:00]} Nf6 {[%emt 0:00:00]} 2. Nf3 {[%emt 0:00:00]} e6 {[%emt 0:00:02]} 3. c4 {[%emt 0:00:06]} Bb4+ {[%emt 0:00:16]} 4. Nbd2 {[%emt 0:00:38]} b6 {[%emt 0:00:19]} 5. e3 {[%emt 0:00:28]} Bb7 {[%emt 0:00:21]} 6. Bd3 {[%emt 0:00:09]} c5 {[%emt 0:06:37]} 7. O-O {[%emt 0:04:37]} cxd4 {[%emt 0:01:25]} 8. exd4 {[%emt 0:08:33]} a5 {[%emt 0:06:43]} 9. a3 {[%emt 0:12:45]} Be7 {[%emt 0:00:27]} 10. b3 {[%emt 0:00:38]} O-O {[%emt 0:05:38]} 11. Qe2 {[%emt 0:03:18]} d5 {[%emt 0:01:47]} 12. Bb2 {[%emt 0:02:50]} a4 {[%emt 0:00:42]} 13. bxa4 {[%emt 0:07:05]} Rxa4 {[%emt 0:01:30]} 14. Ne5 {[%emt 0:02:51]} dxc4 {[%emt 0:01:38]} 15. Ndxc4 {[%emt 0:00:24]} Nc6 {[%emt 0:00:20]} 16. Rfd1 {[%emt 0:02:52]} g6 {[%emt 0:04:29]} 17. Qc2 {[%emt 0:20:22]} Ra7 {[%emt 0:03:44]} 18. Ne3 {[%emt 0:12:39]} Qa8 {[%emt 0:22:28]} 19. N5g4 {[%emt 0:05:17]} Nd5 {[%emt 0:01:02]} 20. Nxd5 {[%emt 0:01:18]} exd5 {[%emt 0:00:01]} 21. Qc1 {[%emt 0:01:32]} Qb8 {[%emt 0:08:25]} 22. Bb5 {[%emt 0:05:09]} Qd6 {[%emt 0:00:37]} 23. a4 {[%emt 0:00:40]} Bc8 {[%emt 0:10:15]} 24. Nh6+ {[%emt 0:06:45]} Kg7 {[%emt 0:00:14]} 25. Qxc6 {[%emt 0:00:05]} Kxh6 {[%emt 0:00:27]} 26. Rac1 {[%emt 0:01:06]} Bd7 {[%emt 0:01:37]} 27. Qxd6 {[%emt 0:03:20]} Bxd6 {[%emt 0:01:10]} 28. Bc6 {[%emt 0:00:16]} Bxc6 {[%emt 0:02:13]} 29. Rxc6 {[%emt 0:00:05]} Be7 {[%emt 0:00:16]} 30. Rxb6 {[%emt 0:01:12]} Rxa4 {[%emt 0:00:04]} 31. Rb5 {[%emt 0:02:16]} Rb4 {[%emt 0:03:23]} 32. Bc1+ {[%emt 0:00:08]} Kg7 {[%emt 0:00:04]} 33. Rxd5 {[%emt 0:00:05]} Rb1 {[%emt 0:00:02]} 34. Bh6+ {[%emt 0:00:10]} 1-0